{"text_format":"1","workbook":"xlsx","n_sheets":5,"sheets":["Menu","Stock Produits","Listing Produits","GestionLISTE","Gestion Mot DE Passe"],"not_rendered":{"charts":0,"images":20,"macros":1,"external_links":1,"defined_names":297,"comments":1,"pivot_tables":0},"unopened":[],"bounds":{"document_bytes":16777216,"sheet_cells":100000,"rows_first":2000,"rows_last":500,"rows_between":2000,"halvings":0,"cell_chars":16384,"cell_head_chars":4096},"cells_cut":0,"cells_raw":0,"read":"whole","date_system":"1900"}

{"sheet":"Menu","index":0,"n_rows":15,"n_cols":1,"rows_kept":15,"cut":false,"hidden":false,"merged":[]}
[]
[]
[]
[]
[]
[]
[]
[]
[]
[]
[]
[]
[]
[]
["                                             "]

{"sheet":"Stock Produits","index":1,"n_rows":7,"n_cols":15,"rows_kept":7,"cut":false,"hidden":false,"merged":[[0,2,0,5]]}
[null,null,"STOCK PRODUITS"]
[]
["Référence Produit","Lieu","Date mise à jour","Quantité","Prix","Prix total",null,null,"Identifiant","Référence Produit","Lieu","dernière mise à jour","Quantité","Prix","Prix total"]
["iD Pants S Plus 5531165140","LV 1","2020-04-14",220,0,{"$f":"Stock[[#This Row],[Quantité]]*Stock[[#This Row],[Prix]]","v":0},null,null,"iD Pants S Plus 5531165140LV 1","iD Pants S Plus 5531165140","LV 1","2020-04-18",90,2,180]
["iD Pants S Plus 5531165140","LV 1","2020-04-18",90,2,{"$f":"Stock[[#This Row],[Quantité]]*Stock[[#This Row],[Prix]]","v":180},null,null,"iD Slip S Plus 5630160140LV 1","iD Slip S Plus 5630160140","LV 1","2020-04-11",12,3.11,37.32]
["iD Slip S Plus 5630160140","LV 1","2020-04-11",12,3.11,{"$f":"Stock[[#This Row],[Quantité]]*Stock[[#This Row],[Prix]]","v":37.32},null,null,"Care Gant de toilette 85310LV 5","Care Gant de toilette 85310","LV 5","2021-04-28",288,null,0]
["Care Gant de toilette 85310","LV 5","2021-04-28",288,null,{"$f":"Stock[[#This Row],[Quantité]]*Stock[[#This Row],[Prix]]","v":0}]

{"sheet":"Listing Produits","index":2,"n_rows":89,"n_cols":19,"rows_kept":89,"cut":false,"hidden":false,"merged":[[0,8,0,9],[4,0,4,1]]}
[]
[]
[]
[]
[{"$f":"TODAY()","v":"2021-04-24"}]
[null,null,null,null,null,null,null,null,null,null,null,1,null,{"$f":"IF(COUNTIF(Produits_à_commander,\"A COMMANDER\")>0, COUNTIF(Produits_à_commander,\"A COMMANDER\") &\" \" & N7,\"OK\")","v":"5 Produit(s) à Commander"}]
["Référence Produit","Conditionnement","Dosage","Descriptif","Date de Péremption 1","Lieux","Fournisseur","Reference F","Delais F1","Prix unitaire","Stock","Ancien Stock","Stock Min","Produit(s) à Commander","Coût stock","Lieux de Stockage","Coût stock quantité minimale","alerte","Ecart suite inventaire"]
["TRANSFIBRE 125g ABRICOT","Carton","125g","TRANSFIBRE 125g ABRICOT 24 unités par carton FRANCO de port et d'emballage","00:00:00","LV 1","NUTRISENS","TRF001","Dispo permanent en stock",1,{"$f":"IFERROR(VLOOKUP(Produits[[#This Row],[Référence Produit]]&Produits[[#This Row],[Lieux]],Dernier_Stock[],5,FALSE),0)","v":0},null,2,{"$f":"IF(OR(AND(NOT(ISBLANK($E8)),$E8<TODAY()),$K8-$M8<0),\"A COMMANDER\",\"\")","v":"A COMMANDER"},0,"Réserve Infirmerie",{"$f":"IF(K8>M8,\"\",(M8-K8)*J8)","v":2},{"$f":"IF(K8<M8,M8-K8,\"\")","v":2}]
["TRANSFIBRE 125g PRUNEAU","Carton","24 Unités","TRANSFIBRE 125g PRUNEAU","00:00:00","LV 1","NUTRISENS","TRF002","Dispo permanent en stock",1,{"$f":"IFERROR(VLOOKUP(Produits[[#This Row],[Référence Produit]]&Produits[[#This Row],[Lieux]],Dernier_Stock[],5,FALSE),0)","v":0},0,0,"A COMMANDER",0,"Réserve Infirmerie",0,{"$f":"IF(K9<M9,M9-K9,\"\")","v":""}]
["TRANSFIBRE 125g RHUBARBE","Carton","24 Unités","TRANSFIBRE 125g RHUBARBE","00:00:00","LV 1","NUTRISENS","TRF003","Dispo permanent en stock",1,{"$f":"IFERROR(VLOOKUP(Produits[[#This Row],[Référence Produit]]&Produits[[#This Row],[Lieux]],Dernier_Stock[],5,FALSE),0)","v":0},0,0,"A COMMANDER",0,"Réserve Infirmerie",0,""]
["iD Form long (64 cm) Super 5310275210","Carton","Unité","iD Form long (64 cm) Super 5310275210\r\n20 Cartons/ Palette  6 Sachets/Cartons  21 Pieces / Sachet","00:00:00","LV 1","VITAE","44068","Dispo permanent en stock","32,68",{"$f":"IFERROR(VLOOKUP(Produits[[#This Row],[Référence Produit]]&Produits[[#This Row],[Lieux]],Dernier_Stock[],5,FALSE),0)","v":0},0,0,"A COMMANDER",0,"Réserve Balnéo",0,""]
["iD Pants S Plus 5531165140","Carton","Unité","iD Pants S Plus 5531165140\r\n20 Cartons/Palette  8 Sachets / cartons  14 Pieces/ Sachet\r\n","2024-04-11","LV 1","VITAE","44053","Dispo permanent en stock",null,{"$f":"IFERROR(VLOOKUP(Produits[[#This Row],[Référence Produit]]&Produits[[#This Row],[Lieux]],Dernier_Stock[],5,FALSE),0)","v":90},0,30,"",180,"Réserve Balnéo","",""]
["iD Pants M Super 5531275120","Carton","Unité","iD Pants M Super 5531275120\r\n","2024-04-11","LV 1","VITAE","398828","Dispo permanent en stock",null,{"$f":"IFERROR(VLOOKUP(Produits[[#This Row],[Référence Produit]]&Produits[[#This Row],[Lieux]],Dernier_Stock[],5,FALSE),0)","v":0},0,0,"",0,"Réserve Balnéo",0,""]
["iD Pants L Super 5531375120D","Carton","Unité","iD Pants L Super 5531375120D\r\n","2024-04-11","LV 1","VITAE","398829","Dispo permanent en stock",null,{"$f":"IFERROR(VLOOKUP(Produits[[#This Row],[Référence Produit]]&Produits[[#This Row],[Lieux]],Dernier_Stock[],5,FALSE),0)","v":0},0,0,"",0,"Réserve Balnéo",0,""]
["iD Slip S Plus 5630160140","Carton","Unité","iD Slip S Plus 5630160140\r\n42 Cartons / Palette  4 Sachets / Carton  14 Pieces / Sachet\r\n","2024-04-11","LV 1","VITAE","44035","Dispo permanent en stock",null,{"$f":"IFERROR(VLOOKUP(Produits[[#This Row],[Référence Produit]]&Produits[[#This Row],[Lieux]],Dernier_Stock[],5,FALSE),0)","v":12},0,0,"",0,"Réserve Balnéo","",""]
["iD Slip M Plus 5610260280-01","Carton","Unité","iD Slip M Plus 5610260280-01\r\n24 Cartons/Palette  4 Sachets/Carton   28 Pieces/Sachet\r\n","2024-04-11","LV 1","VITAE","44036","Dispo permanent en stock",null,{"$f":"IFERROR(VLOOKUP(Produits[[#This Row],[Référence Produit]]&Produits[[#This Row],[Lieux]],Dernier_Stock[],5,FALSE),0)","v":0},0,0,"",0,"Réserve Balnéo",0,""]
["iD Slip L Plus 5610360280-03","Carton","Unité","iD Slip L Plus 5610360280-03\r\n24 Cartons/Palette  4 Sachets/Carton  28 Pieces / Sachet\r\n","2024-04-11","LV 1","VITAE","44037","Dispo permanent en stock",null,{"$f":"IFERROR(VLOOKUP(Produits[[#This Row],[Référence Produit]]&Produits[[#This Row],[Lieux]],Dernier_Stock[],5,FALSE),0)","v":0},0,0,"",0,"Réserve Balnéo",0,""]
["iD Slip M Extra Plus 5610270280-01","Carton","Unité","iD Slip M Extra Plus 5610270280-01\r\n30 Cartons / Palette  3 Sachets / Carton  28 Pieces / Sachet\r\n","2024-04-11","LV 1","VITAE","44039","Dispo permanent en stock","34,66",{"$f":"IFERROR(VLOOKUP(Produits[[#This Row],[Référence Produit]]&Produits[[#This Row],[Lieux]],Dernier_Stock[],5,FALSE),0)","v":0},0,0,"",0,"Réserve Balnéo",0,""]
["iD Slip L Extra Plus 5610370280-03","Carton","Unité","iD Slip L Extra Plus 5610370280-03\r\n20 Cartons / Palette  4 Sachets / Carton  28Pieces / Sachet\r\n","2024-04-11","LV 1","VITAE","44040","Dispo permanent en stock",null,{"$f":"IFERROR(VLOOKUP(Produits[[#This Row],[Référence Produit]]&Produits[[#This Row],[Lieux]],Dernier_Stock[],5,FALSE),0)","v":0},0,0,"",0,"Réserve Balnéo",0,""]
["iD Slip S Super 5630175140","Carton","Unité","iD Slip S Super 5630175140\r\n42 Cartons / Palette  4 Sachets / Carton  14 Pieces / Sachet\r\n","2024-04-11","LV 1","VITAE","44041","Dispo permanent en stock",null,{"$f":"IFERROR(VLOOKUP(Produits[[#This Row],[Référence Produit]]&Produits[[#This Row],[Lieux]],Dernier_Stock[],5,FALSE),0)","v":0},0,0,"",0,"Réserve Balnéo",0,""]
["iD Slip M Super5630275280-01","Carton","Unité","iD Slip M Super5630275280-01\r\n","2024-04-11","LV 1","VITAE","44042","Dispo permanent en stock",null,{"$f":"IFERROR(VLOOKUP(Produits[[#This Row],[Référence Produit]]&Produits[[#This Row],[Lieux]],Dernier_Stock[],5,FALSE),0)","v":0},0,0,"",0,"Réserve Balnéo",0,""]
["iD Slip L Super 5630375280-01","Carton","Unité","iD Slip L Super 5630375280-01\r\n24 Cartons/Palette  3 Sachets/Carton  28 Pieces / Sachet\r\n\r\n","2024-04-11","LV 1","VITAE","44043","Dispo permanent en stock",null,{"$f":"IFERROR(VLOOKUP(Produits[[#This Row],[Référence Produit]]&Produits[[#This Row],[Lieux]],Dernier_Stock[],5,FALSE),0)","v":0},0,0,"",0,"Réserve Balnéo",0,""]
["iD Slip XL Super 5630475140","Carton","Unité","iD Slip XL Super 5630475140\r\n24 Cartons / Palette  4 Sachets / Carton  14 Pieces / Sachet\r\n","2024-04-11","LV 1","VITAE","44044","Dispo permanent en stock",null,{"$f":"IFERROR(VLOOKUP(Produits[[#This Row],[Référence Produit]]&Produits[[#This Row],[Lieux]],Dernier_Stock[],5,FALSE),0)","v":0},0,0,"",0,"Réserve Balnéo",0,""]
["iD Slip S Maxi 5630180200","Carton","Unité","iD Slip S Maxi 5630180200\r\n36 Cartons / Palette 4 Sachets/Carton  20 Pieces / Sachet\r\n","2024-04-11","LV 1","VITAE","44293","Dispo permanent en stock",null,{"$f":"IFERROR(VLOOKUP(Produits[[#This Row],[Référence Produit]]&Produits[[#This Row],[Lieux]],Dernier_Stock[],5,FALSE),0)","v":0},0,20,"A COMMANDER",0,"Réserve Balnéo",0,20]
["iD Slip M Maxi 5630280151","Carton","Unité","iD Slip M Maxi 5630280151\r\n36 Cartons / Palette  3 Scahts / Carton  15 Pieces / Sachet\r\n","2024-04-11","LV 1","VITAE","44294","Dispo permanent en stock",null,{"$f":"IFERROR(VLOOKUP(Produits[[#This Row],[Référence Produit]]&Produits[[#This Row],[Lieux]],Dernier_Stock[],5,FALSE),0)","v":0},0,0,"",0,"Réserve Balnéo",0,""]
["iD Slip L Maxi 5630380151","Carton","Unité","iD Slip L Maxi 5630380151\r\n28 cartons / Palette  3 Sachets / Carton  15 Pieces / Sachet\r\n","2024-04-11","LV 1","VITAE","44295","Dispo permanent en stock",null,{"$f":"IFERROR(VLOOKUP(Produits[[#This Row],[Référence Produit]]&Produits[[#This Row],[Lieux]],Dernier_Stock[],5,FALSE),0)","v":0},0,0,"",0,"Réserve Balnéo",0,""]
["iD Expert Protect 60x90 Plus 5800960300","Carton","Unité","iD Expert Protect 60x90 Plus 5800960300\r\n36 Cartons / Palette  4 Sachets / Carton  30 Pieces / Sachet\r\n","2024-04-11","LV 1","VITAE","43926","Dispo permanent en stock",null,{"$f":"IFERROR(VLOOKUP(Produits[[#This Row],[Référence Produit]]&Produits[[#This Row],[Lieux]],Dernier_Stock[],5,FALSE),0)","v":0},0,0,"",0,"Réserve Balnéo",0,""]
["iD Care Lingettes Care 859006401","Carton","Unité","iD Care Lingettes Care 859006401\r\n44 Cartons / Palette  8 Sachets / Carton  63 Pieces / Sachets\r\n","2024-04-11","LV 1","VITAE","46235","Dispo permanent en stock",null,{"$f":"IFERROR(VLOOKUP(Produits[[#This Row],[Référence Produit]]&Produits[[#This Row],[Lieux]],Dernier_Stock[],5,FALSE),0)","v":0},0,0,"",0,"Réserve Balnéo",0,""]
["Care Gant de toilette 85310","Carton","Unité","Care Gant de toilette 85310\r\n48 Cartons / Palette  20 Sachets / Carton  50 Pieces / Sachet\r\n","2024-04-11","LV 1","VITAE","33079","Dispo permanent en stock",null,{"$f":"IFERROR(VLOOKUP(Produits[[#This Row],[Référence Produit]]&Produits[[#This Row],[Lieux]],Dernier_Stock[],5,FALSE),0)","v":0},0,0,"",0,"Réserve Balnéo",0,""]
["Rectangular Maxi Plus NW 5930000280","Carton","Unité","Care Gant de toilette 85310\r\n36 Cartons / Palette  4 Sachets / Carton  28 Pieces / Sachet\r\n","2024-04-11","LV 1","VITAE","44072","Dispo permanent en stock",null,{"$f":"IFERROR(VLOOKUP(Produits[[#This Row],[Référence Produit]]&Produits[[#This Row],[Lieux]],Dernier_Stock[],5,FALSE),0)","v":0},0,null,"",0,"",0,{"$f":"IF(K30<M30,M30-K30,\"\")","v":""}]
["iD Form long (64 cm) Super 5310275210","Carton","Unité","iD Form long (64 cm) Super 5310275210\r\n20 Cartons/ Palette  6 Sachets/Cartons  21 Pieces / Sachet","2024-04-11","LV 2","VITAE","44068","Dispo permanent en stock",32.68,{"$f":"IFERROR(VLOOKUP(Produits[[#This Row],[Référence Produit]]&Produits[[#This Row],[Lieux]],Dernier_Stock[],5,FALSE),0)","v":0},0,0,"",0,"Réserve Balnéo",0,""]
["iD Pants S Plus 5531165140","Carton","Unité","iD Pants S Plus 5531165140\r\n20 Cartons/Palette  8 Sachets / cartons  14 Pieces/ Sachet\r\n","2024-04-11","LV 2","VITAE","44053","Dispo permanent en stock",null,{"$f":"IFERROR(VLOOKUP(Produits[[#This Row],[Référence Produit]]&Produits[[#This Row],[Lieux]],Dernier_Stock[],5,FALSE),0)","v":0},0,0,"",180,"Réserve Balnéo",0,""]
["iD Pants M Super 5531275120","Carton","Unité","iD Pants M Super 5531275120\r\n","2024-04-11","LV 2","VITAE","398828","Dispo permanent en stock",null,{"$f":"IFERROR(VLOOKUP(Produits[[#This Row],[Référence Produit]]&Produits[[#This Row],[Lieux]],Dernier_Stock[],5,FALSE),0)","v":0},0,0,"",0,"Réserve Balnéo",0,""]
["iD Pants L Super 5531375120D","Carton","Unité","iD Pants L Super 5531375120D\r\n","2024-04-11","LV 2","VITAE","398829","Dispo permanent en stock",null,{"$f":"IFERROR(VLOOKUP(Produits[[#This Row],[Référence Produit]]&Produits[[#This Row],[Lieux]],Dernier_Stock[],5,FALSE),0)","v":0},0,0,"",0,"Réserve Balnéo",0,""]
["iD Slip S Plus 5630160140","Carton","Unité","iD Slip S Plus 5630160140\r\n42 Cartons / Palette  4 Sachets / Carton  14 Pieces / Sachet\r\n","2024-04-11","LV 2","VITAE","44035","Dispo permanent en stock",null,{"$f":"IFERROR(VLOOKUP(Produits[[#This Row],[Référence Produit]]&Produits[[#This Row],[Lieux]],Dernier_Stock[],5,FALSE),0)","v":0},0,0,"",0,"Réserve Balnéo",0,""]
["iD Slip M Plus 5610260280-01","Carton","Unité","iD Slip M Plus 5610260280-01\r\n24 Cartons/Palette  4 Sachets/Carton   28 Pieces/Sachet\r\n","2024-04-11","LV 2","VITAE","44036","Dispo permanent en stock",null,{"$f":"IFERROR(VLOOKUP(Produits[[#This Row],[Référence Produit]]&Produits[[#This Row],[Lieux]],Dernier_Stock[],5,FALSE),0)","v":0},0,0,"",0,"Réserve Balnéo",0,""]
["iD Slip L Plus 5610360280-03","Carton","Unité","iD Slip L Plus 5610360280-03\r\n24 Cartons/Palette  4 Sachets/Carton  28 Pieces / Sachet\r\n","2024-04-11","LV 2","VITAE","44037","Dispo permanent en stock",null,{"$f":"IFERROR(VLOOKUP(Produits[[#This Row],[Référence Produit]]&Produits[[#This Row],[Lieux]],Dernier_Stock[],5,FALSE),0)","v":0},0,0,"",0,"Réserve Balnéo",0,""]
["iD Slip M Extra Plus 5610270280-01","Carton","Unité","iD Slip M Extra Plus 5610270280-01\r\n30 Cartons / Palette  3 Sachets / Carton  28 Pieces / Sachet\r\n","2024-04-11","LV 2","VITAE","44039","Dispo permanent en stock",34.659999999999997,{"$f":"IFERROR(VLOOKUP(Produits[[#This Row],[Référence Produit]]&Produits[[#This Row],[Lieux]],Dernier_Stock[],5,FALSE),0)","v":0},0,0,"",0,"Réserve Balnéo",0,""]
["iD Slip L Extra Plus 5610370280-03","Carton","Unité","iD Slip L Extra Plus 5610370280-03\r\n20 Cartons / Palette  4 Sachets / Carton  28Pieces / Sachet\r\n","2024-04-11","LV 2","VITAE","44040","Dispo permanent en stock",null,{"$f":"IFERROR(VLOOKUP(Produits[[#This Row],[Référence Produit]]&Produits[[#This Row],[Lieux]],Dernier_Stock[],5,FALSE),0)","v":0},0,0,"",0,"Réserve Balnéo",0,""]
["iD Slip S Super 5630175140","Carton","Unité","iD Slip S Super 5630175140\r\n42 Cartons / Palette  4 Sachets / Carton  14 Pieces / Sachet\r\n","2024-04-11","LV 2","VITAE","44041","Dispo permanent en stock",null,{"$f":"IFERROR(VLOOKUP(Produits[[#This Row],[Référence Produit]]&Produits[[#This Row],[Lieux]],Dernier_Stock[],5,FALSE),0)","v":0},0,0,"",0,"Réserve Balnéo",0,""]
["iD Slip M Super5630275280-01","Carton","Unité","iD Slip M Super5630275280-01\r\n","2024-04-11","LV 2","VITAE","44042","Dispo permanent en stock",null,{"$f":"IFERROR(VLOOKUP(Produits[[#This Row],[Référence Produit]]&Produits[[#This Row],[Lieux]],Dernier_Stock[],5,FALSE),0)","v":0},0,0,"",0,"Réserve Balnéo",0,""]
["iD Slip L Super 5630375280-01","Carton","Unité","iD Slip L Super 5630375280-01\r\n24 Cartons/Palette  3 Sachets/Carton  28 Pieces / Sachet\r\n\r\n","2024-04-11","LV 2","VITAE","44043","Dispo permanent en stock",null,{"$f":"IFERROR(VLOOKUP(Produits[[#This Row],[Référence Produit]]&Produits[[#This Row],[Lieux]],Dernier_Stock[],5,FALSE),0)","v":0},0,0,"",0,"Réserve Balnéo",0,""]
["iD Slip XL Super 5630475140","Carton","Unité","iD Slip XL Super 5630475140\r\n24 Cartons / Palette  4 Sachets / Carton  14 Pieces / Sachet\r\n","2024-04-11","LV 2","VITAE","44044","Dispo permanent en stock",null,{"$f":"IFERROR(VLOOKUP(Produits[[#This Row],[Référence Produit]]&Produits[[#This Row],[Lieux]],Dernier_Stock[],5,FALSE),0)","v":0},0,0,"",0,"Réserve Balnéo",0,""]
["iD Slip S Maxi 5630180200","Carton","Unité","iD Slip S Maxi 5630180200\r\n36 Cartons / Palette 4 Sachets/Carton  20 Pieces / Sachet\r\n","2024-04-11","LV 2","VITAE","44293","Dispo permanent en stock",null,{"$f":"IFERROR(VLOOKUP(Produits[[#This Row],[Référence Produit]]&Produits[[#This Row],[Lieux]],Dernier_Stock[],5,FALSE),0)","v":0},0,0,"",0,"Réserve Balnéo",0,""]
["iD Slip M Maxi 5630280151","Carton","Unité","iD Slip M Maxi 5630280151\r\n36 Cartons / Palette  3 Scahts / Carton  15 Pieces / Sachet\r\n","2024-04-11","LV 2","VITAE","44294","Dispo permanent en stock",null,{"$f":"IFERROR(VLOOKUP(Produits[[#This Row],[Référence Produit]]&Produits[[#This Row],[Lieux]],Dernier_Stock[],5,FALSE),0)","v":0},0,0,"",0,"Réserve Balnéo",0,""]
["iD Slip L Maxi 5630380151","Carton","Unité","iD Slip L Maxi 5630380151\r\n28 cartons / Palette  3 Sachets / Carton  15 Pieces / Sachet\r\n","2024-04-11","LV 2","VITAE","44295","Dispo permanent en stock",null,{"$f":"IFERROR(VLOOKUP(Produits[[#This Row],[Référence Produit]]&Produits[[#This Row],[Lieux]],Dernier_Stock[],5,FALSE),0)","v":0},0,0,"",0,"Réserve Balnéo",0,""]
["iD Expert Protect 60x90 Plus 5800960300","Carton","Unité","iD Expert Protect 60x90 Plus 5800960300\r\n36 Cartons / Palette  4 Sachets / Carton  30 Pieces / Sachet\r\n","2024-04-11","LV 2","VITAE","43926","Dispo permanent en stock",null,{"$f":"IFERROR(VLOOKUP(Produits[[#This Row],[Référence Produit]]&Produits[[#This Row],[Lieux]],Dernier_Stock[],5,FALSE),0)","v":0},0,0,"",0,"Réserve Balnéo",0,""]
["iD Care Lingettes Care 859006401","Carton","Unité","iD Care Lingettes Care 859006401\r\n44 Cartons / Palette  8 Sachets / Carton  63 Pieces / Sachets\r\n","2024-04-11","LV 2","VITAE","46235","Dispo permanent en stock",null,{"$f":"IFERROR(VLOOKUP(Produits[[#This Row],[Référence Produit]]&Produits[[#This Row],[Lieux]],Dernier_Stock[],5,FALSE),0)","v":0},0,0,"",0,"Réserve Balnéo",0,""]
["Care Gant de toilette 85310","Carton","Unité","Care Gant de toilette 85310\r\n48 Cartons / Palette  20 Sachets / Carton  50 Pieces / Sachet\r\n","2024-04-11","LV 2","VITAE","33079","Dispo permanent en stock",null,{"$f":"IFERROR(VLOOKUP(Produits[[#This Row],[Référence Produit]]&Produits[[#This Row],[Lieux]],Dernier_Stock[],5,FALSE),0)","v":0},0,0,"",0,"Réserve Balnéo",0,""]
["iD Form long (64 cm) Super 5310275210","Carton","Unité","iD Form long (64 cm) Super 5310275210\r\n20 Cartons/ Palette  6 Sachets/Cartons  21 Pieces / Sachet","2024-04-11","LV 3","VITAE","44068","Dispo permanent en stock",32.58,{"$f":"IFERROR(VLOOKUP(Produits[[#This Row],[Référence Produit]]&Produits[[#This Row],[Lieux]],Dernier_Stock[],5,FALSE),0)","v":0},0,0,"",0,"Réserve Balnéo",0,""]
["iD Pants S Plus 5531165140","Carton","Unité","iD Pants S Plus 5531165140\r\n20 Cartons/Palette  8 Sachets / cartons  14 Pieces/ Sachet\r\n","2024-04-11","LV 3","VITAE","44053","Dispo permanent en stock",null,{"$f":"IFERROR(VLOOKUP(Produits[[#This Row],[Référence Produit]]&Produits[[#This Row],[Lieux]],Dernier_Stock[],5,FALSE),0)","v":0},0,0,"",180,"Réserve Balnéo",0,""]
["iD Pants M Super 5531275120","Carton","Unité","iD Pants M Super 5531275120\r\n","2024-04-11","LV 3","VITAE","398828","Dispo permanent en stock",null,{"$f":"IFERROR(VLOOKUP(Produits[[#This Row],[Référence Produit]]&Produits[[#This Row],[Lieux]],Dernier_Stock[],5,FALSE),0)","v":0},0,0,"",0,"Réserve Balnéo",0,""]
["iD Pants L Super 5531375120D","Carton","Unité","iD Pants L Super 5531375120D\r\n","2024-04-11","LV 3","VITAE","398829","Dispo permanent en stock",null,{"$f":"IFERROR(VLOOKUP(Produits[[#This Row],[Référence Produit]]&Produits[[#This Row],[Lieux]],Dernier_Stock[],5,FALSE),0)","v":0},0,0,"",0,"Réserve Balnéo",0,""]
["iD Slip S Plus 5630160140","Carton","Unité","iD Slip S Plus 5630160140\r\n42 Cartons / Palette  4 Sachets / Carton  14 Pieces / Sachet\r\n","2024-04-11","LV 3","VITAE","44035","Dispo permanent en stock",null,{"$f":"IFERROR(VLOOKUP(Produits[[#This Row],[Référence Produit]]&Produits[[#This Row],[Lieux]],Dernier_Stock[],5,FALSE),0)","v":0},0,0,"",0,"Réserve Balnéo",0,""]
["iD Slip M Plus 5610260280-01","Carton","Unité","iD Slip M Plus 5610260280-01\r\n24 Cartons/Palette  4 Sachets/Carton   28 Pieces/Sachet\r\n","2024-04-11","LV 3","VITAE","44036","Dispo permanent en stock",null,{"$f":"IFERROR(VLOOKUP(Produits[[#This Row],[Référence Produit]]&Produits[[#This Row],[Lieux]],Dernier_Stock[],5,FALSE),0)","v":0},0,0,"",0,"Réserve Balnéo",0,""]
["iD Slip L Plus 5610360280-03","Carton","Unité","iD Slip L Plus 5610360280-03\r\n24 Cartons/Palette  4 Sachets/Carton  28 Pieces / Sachet\r\n","2024-04-11","LV 3","VITAE","44037","Dispo permanent en stock",null,{"$f":"IFERROR(VLOOKUP(Produits[[#This Row],[Référence Produit]]&Produits[[#This Row],[Lieux]],Dernier_Stock[],5,FALSE),0)","v":0},0,0,"",0,"Réserve Balnéo",0,""]
["iD Slip M Extra Plus 5610270280-01","Carton","Unité","iD Slip M Extra Plus 5610270280-01\r\n30 Cartons / Palette  3 Sachets / Carton  28 Pieces / Sachet\r\n","2024-04-11","LV 3","VITAE","44039","Dispo permanent en stock",34.659999999999997,{"$f":"IFERROR(VLOOKUP(Produits[[#This Row],[Référence Produit]]&Produits[[#This Row],[Lieux]],Dernier_Stock[],5,FALSE),0)","v":0},0,0,"",0,"Réserve Balnéo",0,""]
["iD Slip L Extra Plus 5610370280-03","Carton","Unité","iD Slip L Extra Plus 5610370280-03\r\n20 Cartons / Palette  4 Sachets / Carton  28Pieces / Sachet\r\n","2024-04-11","LV 3","VITAE","44040","Dispo permanent en stock",null,{"$f":"IFERROR(VLOOKUP(Produits[[#This Row],[Référence Produit]]&Produits[[#This Row],[Lieux]],Dernier_Stock[],5,FALSE),0)","v":0},0,0,"",0,"Réserve Balnéo",0,""]
["iD Slip S Super 5630175140","Carton","Unité","iD Slip S Super 5630175140\r\n42 Cartons / Palette  4 Sachets / Carton  14 Pieces / Sachet\r\n","2024-04-11","LV 3","VITAE","44041","Dispo permanent en stock",null,{"$f":"IFERROR(VLOOKUP(Produits[[#This Row],[Référence Produit]]&Produits[[#This Row],[Lieux]],Dernier_Stock[],5,FALSE),0)","v":0},0,0,"",0,"Réserve Balnéo",0,""]
["iD Slip M Super5630275280-01","Carton","Unité","iD Slip M Super5630275280-01\r\n","2024-04-11","LV 3","VITAE","44042","Dispo permanent en stock",null,{"$f":"IFERROR(VLOOKUP(Produits[[#This Row],[Référence Produit]]&Produits[[#This Row],[Lieux]],Dernier_Stock[],5,FALSE),0)","v":0},0,0,"",0,"Réserve Balnéo",0,""]
["iD Slip L Super 5630375280-01","Carton","Unité","iD Slip L Super 5630375280-01\r\n24 Cartons/Palette  3 Sachets/Carton  28 Pieces / Sachet\r\n\r\n","2024-04-11","LV 3","VITAE","44043","Dispo permanent en stock",null,{"$f":"IFERROR(VLOOKUP(Produits[[#This Row],[Référence Produit]]&Produits[[#This Row],[Lieux]],Dernier_Stock[],5,FALSE),0)","v":0},0,0,"",0,"Réserve Balnéo",0,""]
["iD Slip XL Super 5630475140","Carton","Unité","iD Slip XL Super 5630475140\r\n24 Cartons / Palette  4 Sachets / Carton  14 Pieces / Sachet\r\n","2024-04-11","LV 3","VITAE","44044","Dispo permanent en stock",null,{"$f":"IFERROR(VLOOKUP(Produits[[#This Row],[Référence Produit]]&Produits[[#This Row],[Lieux]],Dernier_Stock[],5,FALSE),0)","v":0},0,0,"",0,"Réserve Balnéo",0,""]
["iD Slip S Maxi 5630180200","Carton","Unité","iD Slip S Maxi 5630180200\r\n36 Cartons / Palette 4 Sachets/Carton  20 Pieces / Sachet\r\n","2024-04-11","LV 3","VITAE","44293","Dispo permanent en stock",null,{"$f":"IFERROR(VLOOKUP(Produits[[#This Row],[Référence Produit]]&Produits[[#This Row],[Lieux]],Dernier_Stock[],5,FALSE),0)","v":0},0,0,"",0,"Réserve Balnéo",0,""]
["iD Slip M Maxi 5630280151","Carton","Unité","iD Slip M Maxi 5630280151\r\n36 Cartons / Palette  3 Scahts / Carton  15 Pieces / Sachet\r\n","2024-04-11","LV 3","VITAE","44294","Dispo permanent en stock",null,{"$f":"IFERROR(VLOOKUP(Produits[[#This Row],[Référence Produit]]&Produits[[#This Row],[Lieux]],Dernier_Stock[],5,FALSE),0)","v":0},0,0,"",0,"Réserve Balnéo",0,""]
["iD Slip L Maxi 5630380151","Carton","Unité","iD Slip L Maxi 5630380151\r\n28 cartons / Palette  3 Sachets / Carton  15 Pieces / Sachet\r\n","2024-04-11","LV 3","VITAE","44295","Dispo permanent en stock",null,{"$f":"IFERROR(VLOOKUP(Produits[[#This Row],[Référence Produit]]&Produits[[#This Row],[Lieux]],Dernier_Stock[],5,FALSE),0)","v":0},0,0,"",0,"Réserve Balnéo",0,""]
["iD Expert Protect 60x90 Plus 5800960300","Carton","Unité","iD Expert Protect 60x90 Plus 5800960300\r\n36 Cartons / Palette  4 Sachets / Carton  30 Pieces / Sachet\r\n","2024-04-11","LV 3","VITAE","43926","Dispo permanent en stock",null,{"$f":"IFERROR(VLOOKUP(Produits[[#This Row],[Référence Produit]]&Produits[[#This Row],[Lieux]],Dernier_Stock[],5,FALSE),0)","v":0},0,0,"",0,"Réserve Balnéo",0,""]
["iD Care Lingettes Care 859006401","Carton","Unité","iD Care Lingettes Care 859006401\r\n44 Cartons / Palette  8 Sachets / Carton  63 Pieces / Sachets\r\n","2024-04-11","LV 3","VITAE","46235","Dispo permanent en stock",null,{"$f":"IFERROR(VLOOKUP(Produits[[#This Row],[Référence Produit]]&Produits[[#This Row],[Lieux]],Dernier_Stock[],5,FALSE),0)","v":0},0,0,"",0,"Réserve Balnéo",0,""]
["Care Gant de toilette 85310","Carton","Unité","Care Gant de toilette 85310\r\n48 Cartons / Palette  20 Sachets / Carton  50 Pieces / Sachet\r\n","2024-04-11","LV 3","VITAE","33079","Dispo permanent en stock",null,{"$f":"IFERROR(VLOOKUP(Produits[[#This Row],[Référence Produit]]&Produits[[#This Row],[Lieux]],Dernier_Stock[],5,FALSE),0)","v":0},0,0,"",0,"Réserve Balnéo",0,""]
["iD Form long (64 cm) Super 5310275210","Carton","Unité","iD Form long (64 cm) Super 5310275210\r\n20 Cartons/ Palette  6 Sachets/Cartons  21 Pieces / Sachet","2024-04-11","LV 4","VITAE","44068","Dispo permanent en stock",32.58,{"$f":"IFERROR(VLOOKUP(Produits[[#This Row],[Référence Produit]]&Produits[[#This Row],[Lieux]],Dernier_Stock[],5,FALSE),0)","v":0},0,0,"",0,"Réserve Balnéo",0,""]
["iD Pants S Plus 5531165140","Carton","Unité","iD Pants S Plus 5531165140\r\n20 Cartons/Palette  8 Sachets / cartons  14 Pieces/ Sachet\r\n","2024-04-11","LV 4","VITAE","44053","Dispo permanent en stock",null,{"$f":"IFERROR(VLOOKUP(Produits[[#This Row],[Référence Produit]]&Produits[[#This Row],[Lieux]],Dernier_Stock[],5,FALSE),0)","v":0},0,0,"",180,"Réserve Balnéo",0,""]
["iD Pants M Super 5531275120","Carton","Unité","iD Pants M Super 5531275120\r\n","2024-04-11","LV 4","VITAE","398828","Dispo permanent en stock",null,{"$f":"IFERROR(VLOOKUP(Produits[[#This Row],[Référence Produit]]&Produits[[#This Row],[Lieux]],Dernier_Stock[],5,FALSE),0)","v":0},0,0,"",0,"Réserve Balnéo",0,""]
["iD Pants L Super 5531375120D","Carton","Unité","iD Pants L Super 5531375120D\r\n","2024-04-11","LV 4","VITAE","398829","Dispo permanent en stock",null,{"$f":"IFERROR(VLOOKUP(Produits[[#This Row],[Référence Produit]]&Produits[[#This Row],[Lieux]],Dernier_Stock[],5,FALSE),0)","v":0},0,0,{"$f":"IF(OR(AND(NOT(ISBLANK($E72)),$E72<TODAY()),$K72-$M72<0),\"A COMMANDER\",\"\")","v":""},0,"Réserve Balnéo",{"$f":"IF(K72>M72,\"\",(M72-K72)*J72)","v":0},""]
["iD Slip S Plus 5630160140","Carton","Unité","iD Slip S Plus 5630160140\r\n42 Cartons / Palette  4 Sachets / Carton  14 Pieces / Sachet\r\n","2024-04-11","LV 4","VITAE","44035","Dispo permanent en stock",null,{"$f":"IFERROR(VLOOKUP(Produits[[#This Row],[Référence Produit]]&Produits[[#This Row],[Lieux]],Dernier_Stock[],5,FALSE),0)","v":0},0,0,"",0,"Réserve Balnéo",0,""]
["iD Slip M Plus 5610260280-01","Carton","Unité","iD Slip M Plus 5610260280-01\r\n24 Cartons/Palette  4 Sachets/Carton   28 Pieces/Sachet\r\n","2024-04-11","LV 4","VITAE","44036","Dispo permanent en stock",null,{"$f":"IFERROR(VLOOKUP(Produits[[#This Row],[Référence Produit]]&Produits[[#This Row],[Lieux]],Dernier_Stock[],5,FALSE),0)","v":0},0,0,"",0,"Réserve Balnéo",0,{"$f":"IF(K74<M74,M74-K74,\"\")","v":""}]
["iD Slip L Plus 5610360280-03","Carton","Unité","iD Slip L Plus 5610360280-03\r\n24 Cartons/Palette  4 Sachets/Carton  28 Pieces / Sachet\r\n","2024-04-11","LV 4","VITAE","44037","Dispo permanent en stock",null,{"$f":"IFERROR(VLOOKUP(Produits[[#This Row],[Référence Produit]]&Produits[[#This Row],[Lieux]],Dernier_Stock[],5,FALSE),0)","v":0},0,0,"",0,"Réserve Balnéo",0,""]
["iD Slip M Extra Plus 5610270280-01","Carton","Unité","iD Slip M Extra Plus 5610270280-01\r\n30 Cartons / Palette  3 Sachets / Carton  28 Pieces / Sachet\r\n","2024-04-11","LV 4","VITAE","44039","Dispo permanent en stock",34.659999999999997,{"$f":"IFERROR(VLOOKUP(Produits[[#This Row],[Référence Produit]]&Produits[[#This Row],[Lieux]],Dernier_Stock[],5,FALSE),0)","v":0},0,0,"",0,"Réserve Balnéo",0,""]
["iD Slip L Extra Plus 5610370280-03","Carton","Unité","iD Slip L Extra Plus 5610370280-03\r\n20 Cartons / Palette  4 Sachets / Carton  28Pieces / Sachet\r\n","2024-04-11","LV 4","VITAE","44040","Dispo permanent en stock",null,{"$f":"IFERROR(VLOOKUP(Produits[[#This Row],[Référence Produit]]&Produits[[#This Row],[Lieux]],Dernier_Stock[],5,FALSE),0)","v":0},0,0,"",0,"Réserve Balnéo",0,""]
["iD Slip S Super 5630175140","Carton","Unité","iD Slip S Super 5630175140\r\n42 Cartons / Palette  4 Sachets / Carton  14 Pieces / Sachet\r\n","2024-04-11","LV 4","VITAE","44041","Dispo permanent en stock",null,{"$f":"IFERROR(VLOOKUP(Produits[[#This Row],[Référence Produit]]&Produits[[#This Row],[Lieux]],Dernier_Stock[],5,FALSE),0)","v":0},0,0,"",0,"Réserve Balnéo",0,""]
["iD Slip M Super5630275280-01","Carton","Unité","iD Slip M Super5630275280-01\r\n","2024-04-11","LV 4","VITAE","44042","Dispo permanent en stock",null,{"$f":"IFERROR(VLOOKUP(Produits[[#This Row],[Référence Produit]]&Produits[[#This Row],[Lieux]],Dernier_Stock[],5,FALSE),0)","v":0},0,0,"",0,"Réserve Balnéo",0,""]
["iD Slip L Super 5630375280-01","Carton","Unité","iD Slip L Super 5630375280-01\r\n24 Cartons/Palette  3 Sachets/Carton  28 Pieces / Sachet\r\n\r\n","2024-04-11","LV 4","VITAE","44043","Dispo permanent en stock",null,{"$f":"IFERROR(VLOOKUP(Produits[[#This Row],[Référence Produit]]&Produits[[#This Row],[Lieux]],Dernier_Stock[],5,FALSE),0)","v":0},0,0,"",0,"Réserve Balnéo",0,""]
["iD Slip XL Super 5630475140","Carton","Unité","iD Slip XL Super 5630475140\r\n24 Cartons / Palette  4 Sachets / Carton  14 Pieces / Sachet\r\n","2024-04-11","LV 4","VITAE","44044","Dispo permanent en stock",null,{"$f":"IFERROR(VLOOKUP(Produits[[#This Row],[Référence Produit]]&Produits[[#This Row],[Lieux]],Dernier_Stock[],5,FALSE),0)","v":0},0,0,"",0,"Réserve Balnéo",0,""]
["iD Slip S Maxi 5630180200","Carton","Unité","iD Slip S Maxi 5630180200\r\n36 Cartons / Palette 4 Sachets/Carton  20 Pieces / Sachet\r\n","2024-04-11","LV 4","VITAE","44293","Dispo permanent en stock",null,{"$f":"IFERROR(VLOOKUP(Produits[[#This Row],[Référence Produit]]&Produits[[#This Row],[Lieux]],Dernier_Stock[],5,FALSE),0)","v":0},0,0,"",0,"Réserve Balnéo",0,""]
["iD Slip M Maxi 5630280151","Carton","Unité","iD Slip M Maxi 5630280151\r\n36 Cartons / Palette  3 Scahts / Carton  15 Pieces / Sachet\r\n","2024-04-11","LV 4","VITAE","44294","Dispo permanent en stock",null,{"$f":"IFERROR(VLOOKUP(Produits[[#This Row],[Référence Produit]]&Produits[[#This Row],[Lieux]],Dernier_Stock[],5,FALSE),0)","v":0},0,0,"",0,"Réserve Balnéo",0,""]
["iD Slip L Maxi 5630380151","Carton","Unité","iD Slip L Maxi 5630380151\r\n28 cartons / Palette  3 Sachets / Carton  15 Pieces / Sachet\r\n","2024-04-11","LV 4","VITAE","44295","Dispo permanent en stock",null,{"$f":"IFERROR(VLOOKUP(Produits[[#This Row],[Référence Produit]]&Produits[[#This Row],[Lieux]],Dernier_Stock[],5,FALSE),0)","v":0},0,0,"",0,"Réserve Balnéo",0,""]
["iD Expert Protect 60x90 Plus 5800960300","Carton","Unité","iD Expert Protect 60x90 Plus 5800960300\r\n36 Cartons / Palette  4 Sachets / Carton  30 Pieces / Sachet\r\n","2024-04-11","LV 4","VITAE","43926","Dispo permanent en stock",null,{"$f":"IFERROR(VLOOKUP(Produits[[#This Row],[Référence Produit]]&Produits[[#This Row],[Lieux]],Dernier_Stock[],5,FALSE),0)","v":0},0,0,"",0,"Réserve Balnéo",0,""]
["iD Care Lingettes Care 859006401","Carton","Unité","iD Care Lingettes Care 859006401\r\n44 Cartons / Palette  8 Sachets / Carton  63 Pieces / Sachets\r\n","2024-04-11","LV 4","VITAE","46235","Dispo permanent en stock",null,{"$f":"IFERROR(VLOOKUP(Produits[[#This Row],[Référence Produit]]&Produits[[#This Row],[Lieux]],Dernier_Stock[],5,FALSE),0)","v":0},0,0,"",0,"Réserve Balnéo",0,""]
["Care Gant de toilette 85310","Carton","Unité","Care Gant de toilette 85310\r\n48 Cartons / Palette  20 Sachets / Carton  50 Pieces / Sachet\r\n","2024-04-11","LV 4","VITAE","33079","Dispo permanent en stock",null,{"$f":"IFERROR(VLOOKUP(Produits[[#This Row],[Référence Produit]]&Produits[[#This Row],[Lieux]],Dernier_Stock[],5,FALSE),0)","v":0},0,0,"",0,"Réserve Balnéo",0,""]
["Care Gant de toilette 85310","Carton","Unité","Care Gant de toilette 85310\r\n48 Cartons / Palette  20 Sachets / Carton  50 Pieces / Sachet\r\n",null,"LV 5","VITAE","33079",null,null,{"$f":"IFERROR(VLOOKUP(Produits[[#This Row],[Référence Produit]]&Produits[[#This Row],[Lieux]],Dernier_Stock[],5,FALSE),0)","v":288},null,33,{"$f":"IF(OR(AND(NOT(ISBLANK($E88)),$E88<TODAY()),$K88-$M88<0),\"A COMMANDER\",\"\")","v":""},null,"Réserve Balnéo",{"$f":"IF(K88>M88,\"\",(M88-K88)*J88)","v":""},{"$f":"IF(K88<M88,M88-K88,\"\")","v":""}]
[null,null,null,null,null,null,null,null,null,null,{"$f":"IFERROR(VLOOKUP(Produits[[#This Row],[Référence Produit]]&Produits[[#This Row],[Lieux]],Dernier_Stock[],5,FALSE),0)","v":0},null,null,{"$f":"IF(OR(AND(NOT(ISBLANK($E89)),$E89<TODAY()),$K89-$M89<0),\"A COMMANDER\",\"\")","v":""},null,null,{"$f":"IF(K89>M89,\"\",(M89-K89)*J89)","v":0},{"$f":"IF(K89<M89,M89-K89,\"\")","v":""}]

{"sheet":"GestionLISTE","index":3,"n_rows":99,"n_cols":20,"rows_kept":99,"cut":false,"hidden":true,"merged":[[1,0,1,3]]}
[]
["Paramètre GMAO",null,null,null,"Liste Véhicule","Liste Personnel",null,"Liste de Fonction",null,"Liste Lieu de Vie",null,"Heure de Départ ou de Retour",null,"Liste Résidents",null,{"$f":"YEAR(TODAY())","v":2021},null,null,"Chemin pour sauvegarde auto","Chemin pour sauvegarde Image PhotosProduits"]
["Couleur de fond des userform Valeurs RGB",96,138,195,"JUMPER AMENAGE","ALBANHAC Magde",null,"AMP",null,"LV 1",null,"00:15:00.288",null,"AILLOUD Fabien",null,{"$f":"DATE(P2,1,1)","v":"2021-01-01"},"1er  Janvier"]
[null,null,null,null,"TRAFFIC 9 PLACES","ALET-AUREJAC Nadine",null,"AS",null,"LV 2",null,"00:29:59.712",null,"ALBOUY Annie",null,{"$f":"ROUND(DATE(P2,4,MOD(234-11*MOD(P2,19),30))/7,)*7-6","v":"2021-04-04"},"Pâques",null,"Z:\\partage plan de maintenance\\Reception des  Interventions des Lieux de vie"]
["Sauvegarde pour multi utilisateur 1=Yes 2=No",1,null,null,"ZOE",null,null,"COORDINATRICE ",null,"LV 3",null,"00:45:00",null,"ALET-AUREJAC Nadine",null,{"$f":"SUM(P4+1)","v":"2021-04-05"},"Lundi de Pâques"]
[null,null,null,null,"JUMPY","BABEAU Glwadys",null,"COORDINATRICE SOINS",null,"LV 4",null,"01:00:00.288",null,"ALMERAS Sophie",null,{"$f":"DATE(P2,5,1)","v":"2021-05-01"},"1er  Mai"]
["Liste intervenant",2,null,null,"JUMPER HYDRAU","BARRAU Catherine",null,"IDE",null,"LV 5",null,"01:14:59.712",null,"ANDRE Jacques",null,{"$f":"DATE(P2,5,8)","v":"2021-05-08"}," 8 Mai Victoire 1945"]
[null,null,null,null,null,"BOUVIL ALEX",null,"REMPLACANTE",null,"ACCOMPAGNANT",null,"01:30:00",null,"ANDRIEU Valérie",null,{"$f":"P4+39","v":"2021-05-13"},"Jeudi de l'Ascension"]
["blocage des touches 1= ok , autres = noOk","No",null,null,null,"CAILHOL Isabelle",null,"AGENT D'ENTRETIEN",null,null,null,"01:45:00.288",null,"BABEAU Glwadys",null,{"$f":"P4+49","v":"2021-05-23"},"Pentecôte"]
["date de la dernière purge du fichier synthèse","2021-01-15",null,null,null,"CAILLAN Amelie",null,"COMPTABLE",null,null,null,"01:59:59.712",null,"BARRAU Catherine",null,{"$f":"SUM(P9+1)","v":"2021-05-24"},"Lundi de Pentecôte"]
["Dernière mise à jour date","2021-04-24",null,null,null,"CAMPANO Cindy",null,"CHEF DE SERVICE",null,null,null,"02:15:00",null,"BLANC Marie",null,{"$f":"DATE(P2,7,14)","v":"2021-07-14"},"Fête Nationale France"]
["Durée Maxi du prêt",360,null,null,null,"CHARLES-FOULON Gaëlle",null,"DIRECTEUR",null,null,null,"02:30:00.288",null,"BOUDOU Maryse",null,{"$f":"DATE(P2,8,15)","v":"2021-08-15"},"Assomption"]
[null,null,null,null,null,"COMTE M-PIERRE",null,"SECRETARIAT",null,null,null,"02:44:59.712",null,"BOUSQUET Thierry",null,{"$f":"DATE(P2,11,1)","v":"2021-11-01"},"Toussaint"]
[null,null,null,null,null,"COSTES Brigitte",null,null,null,null,null,"03:00:00",null,"BOUSSAC Monique",null,{"$f":"DATE(P2,11,11)","v":"2021-11-11"},"Armistice 1918"]
[null,null,null,null,null,"COUDERC M-Magdeleine",null,null,null,null,null,"03:15:00.288",null,"BOYER Amélie",null,{"$f":"DATE(P2,12,25)","v":"2021-12-25"},"Noël"]
[null,null,null,null,null,"CROZES Elisabeth",null,null,null,null,null,"03:29:59.712",null,"CAILHOL Isabelle"]
[null,null,null,null,null,"CROZES Karine",null,null,null,null,null,"03:45:00",null,"CAILLAN Amélie"]
[null,null,null,null,null,"DELL'OSA Maryse",null,null,null,null,null,"04:00:00.288",null,"CALVET Béatrice"]
[null,null,null,null,null,"DEVAUX Marc",null,null,null,null,null,"04:15:00",null,"CAMPANO Cindy"]
[null,null,null,null,null,"DOMINGUES Stéphanie",null,null,null,null,null,"04:30:00",null,"CAYLA Bernard"]
[null,null,null,null,null,"DOUMAYROU Florence",null,null,null,null,null,"04:45:00.288",null,"CAZOTTES Alain"]
[null,null,null,null,null,"DUEYMES Christine",null,null,null,null,null,"04:59:59.712",null,"CHAMYCK Michel"]
[null,null,null,null,null,"ECHE Virginie",null,null,null,null,null,"05:15:00",null,"CHARLES-FOULON Gaëlle"]
[null,null,null,null,null,"ETIENNE Xavier",null,null,null,null,null,"05:30:00.288",null,"COMTE M-PIERRE"]
[null,null,null,null,null,"FALISSARD Amandine",null,null,null,null,null,"05:44:59.712",null,"COSTES Brigitte"]
[null,null,null,null,null,"FEDYCKI Séverine",null,null,null,null,null,"06:00:00",null,"COUDERC M-Magdeleine"]
[null,null,null,null,null,"GARRIGUES Karine",null,null,null,null,null,"06:15:00.288",null,"CROS Isabelle"]
[null,null,null,null,null,"GAUYRAUD Nathali",null,null,null,null,null,"06:29:59.712",null,"CROZES Elisabeth"]
[null,null,null,null,null,"GENIEZ Sylvie",null,null,null,null,null,"06:45:00",null,"CROZES Karine"]
[null,null,null,null,null,"GIROUSSENS clara",null,null,null,null,null,"07:00:00.288",null,"DARAKCHAN Patrice"]
[null,null,null,null,null,"GOMBERT Colette",null,null,null,null,null,"07:14:59.712",null,"DELL'OSA Maryse"]
[null,null,null,null,null,"GRANDET Danièle",null,null,null,null,null,"07:30:00",null,"DEVAUX Marc"]
[null,null,null,null,null,"GUEGUIN",null,null,null,null,null,"07:45:00.288",null,"DOMINGUES Stéphanie"]
[null,null,null,null,null,"IDE",null,null,null,null,null,"07:59:59.712",null,"DOUMAYROU Florence"]
[null,null,null,null,null,"JUBELIN Christel",null,null,null,null,null,"08:15:00",null,"DOUZIECH Laurent"]
[null,null,null,null,null,"KSENIEZ Brigitte",null,null,null,null,null,"08:30:00.288",null,"DUEYMES Christine"]
[null,null,null,null,null,"LAFON Carinne",null,null,null,null,null,"08:44:59.712",null,"ECHE Virginie"]
[null,null,null,null,null,"LERUST Christine",null,null,null,null,null,"09:00:00",null,"FEDYCKI Séverine"]
[null,null,null,null,null,"MAKOUR Nouara",null,null,null,null,null,"09:15:00.288",null,"FONTAGNES M.Hélène"]
[null,null,null,null,null,"MAYMARD SABRINA",null,null,null,null,null,"09:29:59.712",null,"FRAYSSE Myriam"]
[null,null,null,null,null,"NAYRAGUET Nathalie",null,null,null,null,null,"09:45:00",null,"GARRIGUES Karine"]
[null,null,null,null,null,"PANIS Patricia",null,null,null,null,null,"10:00:00.288",null,"GASC Evelyne"]
[null,null,null,null,null,"PONTET Régis",null,null,null,null,null,"10:14:59.712",null,"GAUYRAUD Nathali"]
[null,null,null,null,null,"POUGET Catherine",null,null,null,null,null,"10:30:00",null,"GOMBERT Colette"]
[null,null,null,null,null,"PRADINES Christophe",null,null,null,null,null,"10:45:00.288",null,"GORES Dominique"]
[null,null,null,null,null,"RAYNAL Martine",null,null,null,null,null,"10:59:59.712",null,"GRANDET Danièle"]
[null,null,null,null,null,"REBOIS Orianne",null,null,null,null,null,"11:15:00",null,"GUIBERT Stéphane"]
[null,null,null,null,null,"REGOURD Cathy",null,null,null,null,null,"11:30:00.288",null,"ICHER Lionel"]
[null,null,null,null,null,"ROQUES CORALIE",null,null,null,null,null,"11:44:59.712",null,"IDE"]
[null,null,null,null,null,"SALESSES Marie Françoise",null,null,null,null,null,"12:00:00",null,"JUBELIN Christel"]
[null,null,null,null,null,"SASSO justine",null,null,null,null,null,"12:15:00.288",null,"LACROIX Méline"]
[null,null,null,null,null,null,null,null,null,null,null,"12:29:59.712",null,"LAFON Carinne"]
[null,null,null,null,null,"SENEGAS Marie",null,null,null,null,null,"12:45:00",null,"LAYROL Fabrice"]
[null,null,null,null,null,"SOULIE Anaïs",null,null,null,null,null,"13:00:00.288",null,"LERUST Christine"]
[null,null,null,null,null,null,null,null,null,null,null,"13:14:59.712",null,"MAKOUR Nouara"]
[null,null,null,null,null,"SOUTADE Régis",null,null,null,null,null,"13:30:00",null,"MARCILHAC Mélany"]
[null,null,null,null,null,"VABRE Ghislaine",null,null,null,null,null,"13:45:00.288",null,"MARTIN Laurent"]
[null,null,null,null,null,"VIDAL Cathy",null,null,null,null,null,"13:59:59.712",null,"MARTINEZ Christopher"]
[null,null,null,null,null,null,null,null,null,null,null,"14:15:00",null,"MARTY Céline"]
[null,null,null,null,null,null,null,null,null,null,null,"14:30:00.288",null,"MARTY Françoise"]
[null,null,null,null,null,null,null,null,null,null,null,"14:45:00",null,"MAZARS Sophie"]
[null,null,null,null,null,null,null,null,null,null,null,"15:00:00",null,"NAYRAGUET Nathalie"]
[null,null,null,null,null,null,null,null,null,null,null,"15:15:00",null,"PANIS Patricia"]
[null,null,null,null,null,null,null,null,null,null,null,"15:29:59.712",null,"PIERRON Nathalie"]
[null,null,null,null,null,null,null,null,null,null,null,"15:45:00",null,"PONTET Régis"]
[null,null,null,null,null,null,null,null,null,null,null,"16:00:00.288",null,"PORRO Nathalie"]
[null,null,null,null,null,null,null,null,null,null,null,"16:14:59.712",null,"POUGET Catherine"]
[null,null,null,null,null,null,null,null,null,null,null,"16:30:00",null,"PRADINES Christophe"]
[null,null,null,null,null,null,null,null,null,null,null,"16:45:00",null,"PUECH Régine"]
[null,null,null,null,null,null,null,null,null,null,null,"16:59:59.712",null,"RAVAILLE Maxime"]
[null,null,null,null,null,null,null,null,null,null,null,"17:15:00",null,"RAYNAL Martine"]
[null,null,null,null,null,null,null,null,null,null,null,"17:30:00.288",null,"REDOULES Dominique"]
[null,null,null,null,null,null,null,null,null,null,null,"17:44:59.712",null,"REGOURD Cathy"]
[null,null,null,null,null,null,null,null,null,null,null,"18:00:00",null,"REYES M-Lorenza"]
[null,null,null,null,null,null,null,null,null,null,null,"18:15:00.288",null,"RIGAL M.Pierre"]
[null,null,null,null,null,null,null,null,null,null,null,"18:29:59.712",null,"ROS Carole"]
[null,null,null,null,null,null,null,null,null,null,null,"18:45:00",null,"ROUMIGUIE Alain"]
[null,null,null,null,null,null,null,null,null,null,null,"19:00:00.288",null,"SALESSES Marie Françoise"]
[null,null,null,null,null,null,null,null,null,null,null,"19:14:59.712",null,"SANCHEZ Béatrice"]
[null,null,null,null,null,null,null,null,null,null,null,"19:30:00",null,"SCHARF Fabien"]
[null,null,null,null,null,null,null,null,null,null,null,"19:45:00.288",null,"SENEGAS Marie"]
[null,null,null,null,null,null,null,null,null,null,null,"19:59:59.712",null,"SORREL Brigitte"]
[null,null,null,null,null,null,null,null,null,null,null,"20:15:00",null,"TORRES Sylvie"]
[null,null,null,null,null,null,null,null,null,null,null,"20:30:00.288",null,"VABRE Ghislaine"]
[null,null,null,null,null,null,null,null,null,null,null,"20:44:59.712",null,"VAYSSE M.José"]
[null,null,null,null,null,null,null,null,null,null,null,"21:00:00",null,"VERDALLE Pascal"]
[null,null,null,null,null,null,null,null,null,null,null,"21:15:00.288",null,"VIAROUGE Christophe"]
[null,null,null,null,null,null,null,null,null,null,null,"21:29:59.712",null,"VIDAL Cathy"]
[null,null,null,null,null,null,null,null,null,null,null,"21:45:00"]
[null,null,null,null,null,null,null,null,null,null,null,"22:00:00.288"]
[null,null,null,null,null,null,null,null,null,null,null,"22:14:59.712"]
[null,null,null,null,null,null,null,null,null,null,null,"22:30:00"]
[null,null,null,null,null,null,null,null,null,null,null,"22:45:00.288"]
[null,null,null,null,null,null,null,null,null,null,null,"22:59:59.712"]
[null,null,null,null,null,null,null,null,null,null,null,"23:15:00"]
[null,null,null,null,null,null,null,null,null,null,null,"23:30:00.288"]
[null,null,null,null,null,null,null,null,null,null,null,"23:45:00"]
[null,null,null,null,null,null,null,null,null,null,null,1]
[null,null,null,null,null,null,null,null,null,null,null,"     "]

{"sheet":"Gestion Mot DE Passe","index":4,"n_rows":3,"n_cols":4,"rows_kept":3,"cut":false,"hidden":true,"merged":[]}
["Users","Passworld","Niveau","Date"]
["Users","Passworld","Niveau","Date"]
["Admin","Admin",1,"2016-02-02"]